bitfinex-derivatives/quotes_BTCF0:USTF0_20250911
["timestamp","ask_amount","ask_price","bid_price","bid_amount"]
[1757590605517,0.95653362,114070.0,114060.0,0.25596765]
[1757590607618,0.18377362,114070.0,114060.0,0.25596765]
[1757590607813,1.00457362,114070.0,114060.0,0.25596765]
[1757590609014,0.18377362,114070.0,114060.0,0.25596765]
[1757590609221,1.00417362,114070.0,114060.0,0.25596765]
[1757590609420,1.00385362,114070.0,114060.0,0.11895835]
[1757590609621,1.00385362,114070.0,114060.0,0.25596765]
[1757590609824,1.00385362,114070.0,114060.0,0.1457693]
[1757590610321,1.00385362,114070.0,114060.0,0.25625036]
[1757590611119,1.00385362,114070.0,114060.0,0.00876]
[1757590611422,1.00385362,114070.0,114060.0,0.1457693]
[1757590613123,1.00385362,114070.0,114060.0,0.00876]
[1757590613325,1.00385362,114070.0,114060.0,0.1457693]
[1757590614426,0.04676432,114070.0,114060.0,0.1457693]
[1757590614726,0.18377362,114070.0,114060.0,0.1457693]
[1757590614922,0.86548432,114070.0,114060.0,0.2827786]
[1757590615227,1.00249362,114070.0,114060.0,0.1457693]
[1757590615627,1.00249362,114070.0,114060.0,0.25625036]
[1757590616528,0.18377362,114070.0,114060.0,0.25625036]
[1757590616727,1.00257362,114070.0,114060.0,0.25625036]
[1757590618429,1.00257362,114070.0,114060.0,0.1457693]
[1757590618925,1.00257362,114070.0,114060.0,0.25622804]
[1757590619631,1.00257362,114070.0,114060.0,0.1457693]
[1757590619831,1.00257362,114070.0,114060.0,0.25622804]
[1757590620235,1.00257362,114070.0,114060.0,0.1457693]
[1757590620831,0.18377362,114070.0,114060.0,0.1457693]
[1757590621021,1.00129362,114070.0,114060.0,0.1457693]
[1757590621432,0.04676432,114070.0,114060.0,0.25622558]
[1757590621633,1.00121362,114070.0,114060.0,0.25622558]
[1757590623431,1.00121362,114070.0,114060.0,0.11921628]
[1757590623630,1.00121362,114070.0,114060.0,0.25622558]
[1757590624729,1.00121362,114070.0,114060.0,0.11921628]
[1757590624935,1.00121362,114070.0,114060.0,0.1457693]
[1757590626435,1.00121362,114070.0,114060.0,0.08765916]
[1757590628235,1.00121362,114070.0,114060.0,0.11921628]
[1757590629936,1.00121362,114070.0,114060.0,0.25622558]
[1757590630735,0.86420432,114070.0,114060.0,0.25622558]
[1757590631034,1.00121362,114070.0,114060.0,0.25622558]
[1757590633728,0.86420432,114070.0,114060.0,0.11921628]
[1757590634035,1.00121362,114070.0,114060.0,0.1457693]
[1757590635130,1.00121362,114070.0,114060.0,0.00876]
[1757590635532,1.13822292,114070.0,114060.0,0.00876]
[1757590635744,0.03613,114050.0,114040.0,0.25061558]
[1757590635932,0.9881793,114050.0,114040.0,0.38762488]
[1757590636337,0.9881793,114050.0,114040.0,0.2771686]
[1757590636734,0.85117,114050.0,114040.0,0.00315]
[1757590636938,0.9881793,114050.0,114040.0,0.00315]
[1757590637239,0.9881793,114050.0,114040.0,0.43490787]
[1757590637538,0.9881793,114050.0,114040.0,0.43590787]
[1757590637726,0.97392856,114050.0,114040.0,0.16288927]
[1757590637924,0.98779856,114050.0,114040.0,0.43690787]
[1757590638124,0.98779856,114050.0,114040.0,0.2791686]
[1757590638340,0.85078926,114050.0,114040.0,0.2791686]
[1757590638537,0.98779856,114050.0,114040.0,0.2791686]
[1757590641234,0.98779856,114050.0,114040.0,0.38955198]
[1757590641537,0.98695856,114050.0,114040.0,0.38955198]
[1757590642333,0.84994926,114050.0,114040.0,0.38955198]
[1757590642533,0.98695856,114050.0,114040.0,0.38955198]
[1757590643440,0.84994926,114050.0,114040.0,0.38955198]
[1757590643644,0.98695856,114050.0,114040.0,0.38955198]
[1757590644234,0.98695856,114050.0,114040.0,0.2791686]
[1757590644543,0.98627856,114050.0,114040.0,0.2791686]
[1757590644937,0.84926926,114050.0,114040.0,0.2791686]
[1757590645139,0.98627856,114050.0,114040.0,0.2791686]
[1757590646644,0.98599856,114050.0,114040.0,0.2791686]
[1757590647138,0.03574926,114050.0,114040.0,0.2791686]
[1757590647441,0.98603856,114050.0,114040.0,0.35799582]
[1757590648645,0.03574926,114050.0,114040.0,0.35799582]
[1757590648850,0.98579856,114050.0,114040.0,0.2791686]
[1757590653249,0.9715478,114050.0,114040.0,0.2791686]
[1757590653449,0.8345385,114050.0,114040.0,0.00515]
[1757590653649,0.9715478,114050.0,114040.0,0.2791686]
[1757590656252,0.9715478,114050.0,114040.0,0.38953858]
[1757590656550,0.8345385,114050.0,114040.0,0.38953858]
[1757590656751,0.9715478,114050.0,114040.0,0.2791686]
[1757590657051,0.9715478,114050.0,114040.0,0.3895503]
[1757590659154,0.8345385,114050.0,114040.0,0.1155317]
[1757590659354,0.9715478,114050.0,114040.0,0.1155317]
[1757590659555,0.9715478,114050.0,114040.0,0.3895503]
[1757590659760,0.9715478,114050.0,114040.0,0.1155317]
[1757590660249,0.9715478,114050.0,114040.0,0.252541]
[1757590660458,0.9715478,114050.0,114040.0,0.3895503]
[1757590660658,0.9715478,114050.0,114040.0,0.00515]
[1757590660859,0.9715478,114050.0,114040.0,0.2791686]
[1757590661466,0.9715478,114050.0,114040.0,0.43690787]
[1757590662164,0.9715478,114050.0,114040.0,0.2791686]
[1757590662964,0.9715478,114050.0,114040.0,0.43690787]
[1757590663165,0.9715478,114050.0,114040.0,0.44566787]
[1757590663463,0.98004704,114050.0,114040.0,0.44566787]
[1757590663855,0.98004704,114050.0,114040.0,0.55610256]
[1757590664466,0.84303774,114050.0,114040.0,0.37343662]
[1757590664762,0.84303774,114050.0,114040.0,0.21569735]
[1757590665165,0.9343904,114050.0,114040.0,0.12434469]
[1757590665567,0.9343904,114050.0,114040.0,0.01391]
[1757590666465,0.9320304,114050.0,114040.0,0.01391]
[1757590667267,0.1213504,114050.0,114040.0,0.10526266]
[1757590667457,0.9317904,114050.0,114040.0,0.10526266]
[1757590672874,0.9317904,114050.0,114040.0,0.21572684]
[1757590673380,0.9317904,114050.0,114040.0,0.12437418]
[1757590673580,0.9317904,114050.0,114040.0,0.21572684]
[1757590673873,0.9306304,114050.0,114040.0,0.10526266]
[1757590675578,0.9306304,114050.0,114040.0,0.01391]
[1757590675880,0.9306304,114050.0,114040.0,0.10526266]
[1757590676677,0.9306304,114050.0,114040.0,0.2157179]
[1757590677577,0.1213504,114050.0,114040.0,0.2157179]
[1757590677773,0.9301504,114050.0,114040.0,0.2157179]
[1757590678278,0.02999774,114050.0,114040.0,0.2157179]
[1757590678483,0.56047774,114050.0,114040.0,0.2157179]
[1757590679677,0.02999774,114050.0,114040.0,0.12436524]
[1757590679871,0.83859774,114050.0,114040.0,0.2157179]
[1757590680276,0.83859774,114050.0,114040.0,0.12436524]
[1757590680578,0.83859774,114050.0,114040.0,0.2157179]
[1757590680881,0.83843774,114050.0,114040.0,0.2157179]
[1757590681076,0.83843774,114050.0,114040.0,0.10526266]
[1757590681784,0.02999774,114050.0,114040.0,0.10526266]
[1757590681977,0.64635774,114050.0,114040.0,0.10526266]
[1757590683877,0.64635774,114050.0,114040.0,0.2157179]
[1757590684486,0.64635774,114050.0,114040.0,0.2069579]
[1757590684789,0.64635774,114050.0,114040.0,0.09650266]
[1757590685285,0.64635774,114050.0,114040.0,0.10526266]
[1757590685889,0.02999774,114050.0,114040.0,0.10526266]
[1757590686090,0.64423774,114050.0,114040.0,0.10526266]
[1757590686393,0.83799774,114050.0,114040.0,0.70661532]
[1757590686580,0.02999774,114050.0,114040.0,0.70661532]
[1757590686874,0.64643774,114050.0,114040.0,0.86435459]
[1757590687485,0.64643774,114050.0,114040.0,0.70661532]
[1757590688988,0.64643774,114050.0,114040.0,0.81707304]
[1757590690686,0.83823774,114050.0,114040.0,0.81707304]
[1757590691490,0.83823774,114050.0,114040.0,0.63436772]
[1757590691788,0.83823774,114050.0,114040.0,0.81707304]
[1757590691990,0.83823774,114050.0,114040.0,0.63436772]
[1757590692192,0.83823774,114050.0,114040.0,0.81707304]
[1757590693096,0.02999774,114050.0,114040.0,0.81707304]
[1757590693293,0.83799774,114050.0,114040.0,0.81707304]
[1757590695997,0.83799774,114050.0,114040.0,0.70661532]
[1757590696597,0.83799774,114050.0,114040.0,0.81707865]
[1757590697787,0.83799774,114050.0,114040.0,0.19661532]
[1757590697990,0.83799774,114050.0,114040.0,0.10526266]
[1757590698191,0.83799774,114050.0,114040.0,0.21573028]
[1757590698689,0.83799774,114050.0,114040.0,0.10526266]
[1757590699999,0.83799774,114050.0,114040.0,0.21573014]
[1757590700401,0.83799774,114050.0,114040.0,0.10526266]
[1757590705010,0.83799774,114050.0,114040.0,0.01391]
[1757590705306,0.83799774,114050.0,114040.0,0.10526266]
[1757590705502,0.83799774,114050.0,114040.0,0.21573444]
[1757590706809,0.83799774,114050.0,114040.0,0.12438178]
[1757590707004,0.83799774,114050.0,114040.0,0.21573444]
[1757590708310,0.83799774,114050.0,114040.0,0.12438178]
[1757590708509,0.83799774,114050.0,114040.0,0.21573444]
[1757590708909,0.83799774,114050.0,114040.0,0.12438178]
[1757590709101,0.83799774,114050.0,114040.0,0.21573444]
[1757590709702,0.83799774,114050.0,114040.0,0.12438178]
[1757590709902,0.83799774,114050.0,114040.0,0.21573444]
[1757590710103,0.83799774,114050.0,114040.0,0.10526266]
[1757590710311,0.83799774,114050.0,114040.0,0.21573877]
[1757590711813,0.83799774,114050.0,114040.0,0.12438611]
[1757590712012,0.83799774,114050.0,114040.0,0.21573877]
[1757590717518,0.83787774,114050.0,114040.0,0.21573877]
[1757590718314,0.83787774,114050.0,114040.0,0.30709143]
[1757590718517,0.83787774,114050.0,114040.0,0.82709143]
[1757590719714,0.83787774,114050.0,114040.0,0.73573877]
[1757590720914,0.83787774,114050.0,114040.0,0.12438611]
[1757590721413,0.83787774,114050.0,114040.0,0.21573877]
[1757590721717,0.83787774,114050.0,114040.0,0.12438611]
[1757590721919,0.83787774,114050.0,114040.0,0.21573877]
[1757590723710,0.83787774,114050.0,114040.0,0.12438611]
[1757590723909,0.83787774,114050.0,114040.0,0.21573877]
[1757590724118,0.83787774,114050.0,114040.0,0.12438611]
[1757590724420,0.83787774,114050.0,114040.0,0.21573877]
[1757590724615,0.83787774,114050.0,114040.0,0.12438611]
[1757590724815,0.83787774,114050.0,114040.0,0.21573877]
[1757590726314,0.9749081,114050.0,114040.0,0.39844683]
[1757590726509,0.83787774,114050.0,114040.0,0.39844683]
[1757590727024,0.9749081,114050.0,114040.0,0.39844683]
[1757590732923,0.83787774,114050.0,114040.0,0.39844683]
[1757590733226,0.9749081,114050.0,114040.0,0.39844683]
[1757590740937,0.9749081,114050.0,114040.0,0.28797072]
[1757590744845,0.9749081,114050.0,114040.0,0.01391]
[1757590745036,0.9749081,114050.0,114040.0,0.28797072]
[1757590745844,0.83787774,114050.0,114040.0,0.15094036]
[1757590746048,0.9749081,114050.0,114040.0,0.28797072]
[1757590746346,0.83787774,114050.0,114040.0,0.44570999]
[1757590746539,0.9749081,114050.0,114040.0,0.44570999]
[1757590747045,0.9749081,114050.0,114040.0,0.28797072]
[1757590747747,0.83787774,114050.0,114040.0,0.39846742]
[1757590747946,0.9749081,114050.0,114040.0,0.39846742]
[1757590748449,0.9749081,114050.0,114040.0,0.39846599]
[1757590749447,0.9749081,114050.0,114040.0,0.28797072]
[1757590749947,0.9749081,114050.0,114040.0,0.39846487]
[1757590750747,0.9749081,114050.0,114040.0,0.39846396]
[1757590752145,0.9749081,114050.0,114040.0,0.47738716]
[1757590752343,0.9749081,114050.0,114040.0,0.0896832]
[1757590752547,1.36193846,114050.0,114040.0,0.08968867]
[1757590752745,1.36193846,114050.0,114040.0,0.01076]
[1757590752945,1.36193846,114050.0,114040.0,0.08968867]
[1757590753343,0.55405846,114050.0,114040.0,0.08968867]
[1757590753549,1.36145846,114050.0,114040.0,0.08968867]
[1757590753841,1.2244281,114050.0,114040.0,0.08968867]
[1757590754048,1.2244281,114050.0,114040.0,0.12125324]
[1757590754238,1.2244281,114050.0,114040.0,0.20013455]
[1757590754440,1.2244281,114050.0,114040.0,0.08964131]
[1757590755552,1.2244281,114050.0,114040.0,0.01076]
[1757590758038,1.36145846,114050.0,114040.0,0.01076]
[1757590758243,1.2244281,114050.0,114040.0,0.08964131]
[1757590759646,1.36145846,114050.0,114040.0,0.08964131]
[1757590760353,1.36145846,114050.0,114040.0,0.01076]
[1757590765451,1.11145846,114050.0,114040.0,0.01076]
[1757590765656,0.03629,114040.0,114020.0,0.21591167]
[1757590765955,0.98060036,114030.0,114020.0,0.2475236]
[1757590766256,0.98060036,114030.0,114020.0,0.2690036]
[1757590766756,1.04934786,114030.0,114020.0,0.2690036]
[1757590767056,1.04934786,114030.0,114020.0,0.2710036]
[1757590767355,1.06943067,114030.0,114020.0,0.2710036]
[1757590768856,1.06943067,114030.0,114020.0,0.16051036]
[1757590769357,1.07043067,114030.0,114020.0,0.15851036]
[1757590770160,0.03629,114020.0,114010.0,0.14074324]
[1757590770457,0.03629,114020.0,114010.0,0.7777736]
[1757590770850,0.03629,114020.0,114010.0,0.53025]
[1757590771052,0.03629,114020.0,114010.0,0.66728036]
[1757590771250,0.03629,114020.0,114010.0,0.53025]
[1757590771451,0.03629,114020.0,114010.0,0.66728036]
[1757590771751,0.03629,114020.0,114010.0,0.53025]
[1757590771954,0.03629,114020.0,114010.0,0.66828036]
[1757590772157,0.03629,114020.0,114010.0,0.53225]
[1757590772358,0.03629,114020.0,114010.0,0.66928036]
[1757590772650,0.03629,114020.0,114010.0,0.77950669]
[1757590772854,0.03629,114020.0,114010.0,0.64247633]
[1757590773050,0.03629,114020.0,114010.0,0.77950669]
[1757590774861,0.04525262,114020.0,114010.0,0.66928036]
[1757590776056,0.04525262,114020.0,114010.0,0.77950669]
[1757590776451,0.04525262,114020.0,114010.0,0.66928036]
[1757590776755,0.04525262,114020.0,114010.0,0.53225]
[1757590776956,0.04525262,114020.0,114010.0,0.66928036]
[1757590778559,0.1680286,114020.0,114010.0,0.77957569]
[1757590778759,0.1814486,114020.0,114010.0,0.77957569]
[1757590779761,0.1814486,114020.0,114010.0,0.66928036]
[1757590780163,0.1814486,114020.0,114010.0,0.66051036]
[1757590780364,0.1814486,114020.0,114010.0,0.52348]
[1757590780660,0.1814486,114020.0,114010.0,0.66051036]
[1757590782062,0.1814486,114020.0,114010.0,0.52348]
[1757590782250,0.1814486,114020.0,114010.0,0.66051036]
[1757590782859,0.1814486,114020.0,114010.0,0.77093094]
[1757590783063,0.1814486,114020.0,114010.0,0.28093094]
[1757590783362,0.1814486,114020.0,114010.0,0.17051036]
[1757590784366,0.1814486,114020.0,114010.0,0.28092378]
[1757590786455,0.1358274,114020.0,114010.0,0.23530258]
[1757590787063,0.1358274,114020.0,114010.0,0.22530258]
[1757590787662,0.1358274,114020.0,114010.0,0.11488916]
[1757590789167,0.1358274,114020.0,114010.0,0.2253094]
[1757590790668,0.1358274,114020.0,114010.0,0.11488916]
[1757590790862,0.1358274,114020.0,114010.0,0.22531128]
[1757590791766,0.1358274,114020.0,114010.0,0.11488916]
[1757590792367,0.1358274,114020.0,114010.0,0.22531019]
[1757590794467,0.04441824,114020.0,114010.0,0.22531019]
[1757590795669,0.04441824,114020.0,114010.0,0.11488916]
[1757590796468,0.04441824,114020.0,114010.0,0.22531558]
[1757590796965,0.85121824,114020.0,114010.0,0.22531558]
[1757590798372,0.85121824,114020.0,114010.0,0.11488916]
[1757590799369,0.85121824,114020.0,114010.0,0.12365916]
[1757590800073,0.04441824,114020.0,114010.0,0.23408959]
[1757590800267,0.85109824,114020.0,114010.0,0.23408959]
[1757590800674,0.04441824,114020.0,114010.0,0.23408959]
[1757590800974,0.71609824,114020.0,114010.0,0.12365916]
[1757590801272,0.71609824,114020.0,114010.0,0.13698916]
[1757590802473,0.85105824,114020.0,114010.0,0.13698916]
[1757590803276,0.04441824,114020.0,114010.0,0.24742864]
[1757590803475,0.78613824,114020.0,114010.0,0.24742864]
[1757590805367,0.04441824,114020.0,114010.0,0.24742864]
[1757590805568,0.85101824,114020.0,114010.0,0.24742864]
[1757590805773,0.85101824,114020.0,114010.0,0.13698916]
[1757590807977,0.85101824,114020.0,114010.0,0.24746531]
[1757590808179,0.85089824,114020.0,114010.0,0.24746531]
[1757590810581,0.87111982,114020.0,114010.0,0.15605615]
[1757590810772,0.87111982,114020.0,114010.0,0.24746531]
[1757590811279,0.87111982,114020.0,114010.0,0.13698916]
[1757590812078,0.87111982,114020.0,114010.0,0.24749607]
[1757590812481,0.87111982,114020.0,114010.0,0.13698916]
[1757590812670,0.87111982,114020.0,114010.0,0.24750291]
[1757590814681,0.87111982,114020.0,114010.0,0.13698916]
[1757590815370,0.85686506,114020.0,114010.0,0.13698916]
[1757590815878,0.85686506,114020.0,114010.0,0.2474963]
[1757590818284,0.85686506,114020.0,114010.0,0.13698916]
[1757590819882,0.85686506,114020.0,114010.0,0.29472843]
[1757590820578,0.85686506,114020.0,114010.0,0.13698916]
[1757590820781,0.83664348,114020.0,114010.0,0.13698916]
[1757590821983,0.83664348,114020.0,114010.0,0.24749206]
[1757590823276,0.83664348,114020.0,114010.0,0.13698916]
[1757590823886,0.83664348,114020.0,114010.0,0.29472843]
[1757590825485,0.80856872,114020.0,114010.0,0.13698916]
[1757590825682,0.83026872,114020.0,114010.0,0.13698916]
[1757590826680,0.02418872,114020.0,114010.0,0.96658739]
[1757590826881,0.83026872,114020.0,114010.0,0.87890369]
[1757590827083,0.83026872,114020.0,114010.0,0.78749453]
[1757590828978,0.83026872,114020.0,114010.0,0.67698916]
[1757590829387,0.83026872,114020.0,114010.0,0.78748486]
[1757590829786,0.83026872,114020.0,114010.0,0.67698916]
[1757590830085,0.83026872,114020.0,114010.0,0.7874865]
[1757590830488,0.83026872,114020.0,114010.0,0.87889566]
[1757590831384,0.83026872,114020.0,114010.0,0.95781991]
[1757590831584,0.83026872,114020.0,114010.0,0.84732257]
[1757590831886,0.83026872,114020.0,114010.0,0.75591341]
[1757590832586,0.83026872,114020.0,114010.0,0.76839832]
[1757590833190,0.83026872,114020.0,114010.0,0.67698916]
[1757590835588,0.0904475,114030.0,114020.0,0.0361]
[1757590835794,0.8963275,114030.0,114020.0,0.76891832]
[1757590836082,0.90514786,114030.0,114020.0,0.87940946]
[1757590836691,0.90514786,114030.0,114020.0,0.76891832]
[1757590836883,0.90614786,114030.0,114020.0,0.76891832]
[1757590837084,0.90714786,114030.0,114020.0,0.77768832]
[1757590839299,0.90714786,114030.0,114020.0,0.85653229]
[1757590840896,0.90714786,114030.0,114020.0,0.67371397]
[1757590841199,0.90714786,114030.0,114020.0,0.85653229]
[1757590842494,0.90714786,114030.0,114020.0,0.88806988]
[1757590844996,0.90714786,114030.0,114020.0,0.77768832]
[1757590846396,0.90714786,114030.0,114020.0,0.97932148]
[1757590849892,0.0924475,114030.0,114020.0,0.97932148]
[1757590850097,0.8978875,114030.0,114020.0,0.7052021]
[1757590850293,0.8978875,114030.0,114020.0,0.97932148]
[1757590851299,0.8978875,114030.0,114020.0,0.86898938]
[1757590851798,0.8978875,114030.0,114020.0,0.59487]
[1757590851999,0.8978875,114030.0,114020.0,0.86898938]
[1757590852701,0.90654976,114030.0,114020.0,0.86898938]
[1757590853399,0.90654976,114030.0,114020.0,0.97932608]
[1757590859302,0.90654976,114030.0,114020.0,0.86898938]
[1757590859493,0.90654976,114030.0,114020.0,0.97936463]
[1757590859896,0.90654976,114030.0,114020.0,0.70524525]
[1757590860095,0.90654976,114030.0,114020.0,0.97936463]
[1757590860303,0.90654976,114030.0,114020.0,0.86898938]
[1757590862199,0.8760675,114030.0,114020.0,1.20411984]
[1757590862505,0.8760675,114030.0,114020.0,0.79294077]
[1757590862804,0.8760675,114030.0,114020.0,0.95666578]
[1757590863794,0.8760675,114030.0,114020.0,0.6825464]
[1757590863996,0.8760675,114030.0,114020.0,0.95666578]
[1757590864499,0.8760675,114030.0,114020.0,1.09372547]
[1757590864804,0.8760675,114030.0,114020.0,1.25146474]
[1757590866104,0.86181491,114030.0,114020.0,1.25146474]
[1757590866802,0.69604628,114030.0,114020.0,1.25146474]
[1757590867302,0.69604628,114030.0,114020.0,1.09372547]
[1757590869799,0.69604628,114030.0,114020.0,0.95666578]
[1757590870106,0.69604628,114030.0,114020.0,1.09372547]
[1757590871403,0.78864818,114030.0,114020.0,0.95666578]
[1757590872295,0.78864818,114030.0,114020.0,1.11440505]
[1757590872606,0.78864818,114030.0,114020.0,1.25146474]
[1757590872904,0.78864818,114030.0,114020.0,1.09372547]
[1757590874605,0.78864818,114030.0,114020.0,1.25146474]
[1757590875906,0.78864818,114030.0,114020.0,1.11440505]
[1757590876107,0.0926019,114030.0,114020.0,1.11440505]
[1757590876512,0.0695819,114030.0,114020.0,1.11440505]
[1757590876703,0.59402489,114040.0,114020.0,1.11440505]
[1757590876898,0.61704489,114040.0,114030.0,0.28290759]
[1757590877408,0.61704489,114040.0,114030.0,0.41996728]
[1757590877901,0.61704489,114040.0,114030.0,0.28290759]
[1757590878511,0.61704489,114040.0,114030.0,0.29166759]
[1757590878912,0.61804489,114040.0,114030.0,0.29166759]
[1757590879508,0.61904489,114040.0,114030.0,0.29166759]
[1757590880008,0.61904489,114040.0,114030.0,0.18120969]
[1757590880808,0.61904489,114040.0,114030.0,0.29166906]
[1757590881010,0.68925178,114040.0,114030.0,0.29166906]
[1757590882813,0.68925178,114040.0,114030.0,0.18120969]
[1757590883302,0.68925178,114040.0,114030.0,0.29166906]
[1757590890008,0.68925178,114040.0,114030.0,0.18120969]
[1757590891813,0.68925178,114040.0,114030.0,0.1546427]
[1757590892119,0.68925178,114040.0,114030.0,0.29170239]
[1757590893120,0.68925178,114040.0,114030.0,0.1546427]
[1757590893418,0.68925178,114040.0,114030.0,0.29170239]
[1757590893714,0.70205178,114040.0,114030.0,0.29170239]
[1757590893918,0.70205178,114040.0,114030.0,0.27869239]
[1757590894220,0.83911147,114040.0,114030.0,0.27869239]
[1757590895519,0.83911147,114040.0,114030.0,0.1416327]
[1757590895817,0.83911147,114040.0,114030.0,0.27869239]
[1757590896319,0.83911147,114040.0,114030.0,0.03114]
[1757590896510,0.83911147,114040.0,114030.0,0.16819969]
[1757590898225,0.83911147,114040.0,114030.0,0.03114]
[1757590898423,0.83911147,114040.0,114030.0,0.16819969]
[1757590898825,0.83911147,114040.0,114030.0,0.03114]
[1757590899219,0.83911147,114040.0,114030.0,0.16819969]
[1757590899421,0.92269178,114040.0,114030.0,0.16819969]
[1757590899720,1.05975147,114040.0,114030.0,0.16819969]
[1757590901023,1.05975147,114040.0,114030.0,0.27870188]
[1757590904516,0.92269178,114040.0,114030.0,0.27870188]
[1757590904724,1.05975147,114040.0,114030.0,0.16819969]
[1757590904926,0.92269178,114040.0,114030.0,0.27869373]
[1757590905125,1.05939147,114040.0,114030.0,0.27869373]
[1757590906335,0.92233178,114040.0,114030.0,0.23300836]
[1757590911831,0.92233178,114040.0,114030.0,0.14163404]
[1757590912129,0.92233178,114040.0,114030.0,0.23300836]
[1757590913330,0.92233178,114040.0,114030.0,0.12251432]
[1757590914332,0.92233178,114040.0,114030.0,0.23300343]
[1757590914627,0.92233178,114040.0,114030.0,0.14162911]
[1757590914833,0.92233178,114040.0,114030.0,0.23300343]
[1757590916436,0.92233178,114040.0,114030.0,0.14162911]
[1757590916931,0.92233178,114040.0,114030.0,0.23300343]
[1757590922838,0.92233178,114040.0,114030.0,0.12251432]
[1757590924041,0.11669178,114040.0,114030.0,0.12251432]
[1757590924247,0.92225178,114040.0,114030.0,0.12251432]
[1757590924433,0.92225178,114040.0,114030.0,0.23301179]
[1757590926548,0.11669178,114040.0,114030.0,0.83634179]
[1757590926731,0.92221178,114040.0,114030.0,0.24634179]
[1757590927545,0.92221178,114040.0,114030.0,0.13584432]
[1757590927841,0.92221178,114040.0,114030.0,0.28584432]
[1757590928233,0.92121178,114040.0,114030.0,0.28584432]
[1757590928438,0.92121178,114040.0,114030.0,0.39633725]
[1757590928840,0.90741178,114040.0,114030.0,0.39633725]
[1757590930754,0.90741178,114040.0,114030.0,0.28584432]
[1757590931247,0.90741178,114040.0,114030.0,0.39632873]
[1757590931743,0.90741178,114040.0,114030.0,0.28584432]
[1757590933549,0.90741178,114040.0,114030.0,0.39632526]
[1757590934748,0.90741178,114040.0,114030.0,0.28584432]
[1757590935141,0.90741178,114040.0,114030.0,0.39632395]
[1757590940052,0.92018178,114040.0,114030.0,0.39632395]
[1757590941144,0.92018178,114040.0,114030.0,0.28584432]
[1757590942247,0.92018178,114040.0,114030.0,0.36475637]
[1757590942647,0.92018178,114040.0,114030.0,0.28584432]
[1757590943248,0.92018178,114040.0,114030.0,0.39632158]
[1757590943554,0.92018178,114040.0,114030.0,0.30494726]
[1757590943755,0.92018178,114040.0,114030.0,0.39632158]
[1757590944856,0.92018178,114040.0,114030.0,0.28584432]
[1757590946955,0.92018178,114040.0,114030.0,0.19447]
[1757590947153,0.92018178,114040.0,114030.0,0.39632457]
[1757590947853,0.92018178,114040.0,114030.0,0.28584432]
[1757590949958,0.92018178,114040.0,114030.0,0.3963287]
[1757590951151,0.92018178,114040.0,114030.0,0.28584432]
[1757590952850,0.92018178,114040.0,114030.0,0.39633426]
[1757590953655,0.92018178,114040.0,114030.0,0.28584432]
[1757590956158,0.92018178,114040.0,114030.0,0.3963426]
[1757590957259,0.0204758,114050.0,114040.0,0.0126]
[1757590957455,0.8484758,114050.0,114040.0,0.77746864]
[1757590958657,0.0443158,114050.0,114040.0,0.77746864]
[1757590958859,0.8494758,114050.0,114040.0,0.77746864]
[1757590959058,0.8494758,114050.0,114040.0,0.78622864]
[1757590959560,0.8504758,114050.0,114040.0,0.78622864]
[1757590960362,0.8504758,114050.0,114040.0,0.89672692]
[1757590960565,0.85930603,114050.0,114040.0,0.89672692]
[1757590961457,0.12330905,114050.0,114040.0,0.89672692]
[1757590961659,0.92838905,114050.0,114040.0,0.89672692]
[1757590965267,0.92830905,114050.0,114040.0,0.89672692]
[1757590968469,0.92830905,114050.0,114040.0,0.98801818]
[1757590970569,0.92830905,114050.0,114040.0,0.8775199]
[1757590971070,0.92830905,114050.0,114040.0,0.9878054]
[1757590979176,0.92830905,114050.0,114040.0,0.8775199]
[1757590979367,0.92830905,114050.0,114040.0,0.9878352]
[1757590980678,0.92830905,114050.0,114040.0,0.8775199]
[1757590980876,0.92830905,114050.0,114040.0,0.98784086]
[1757590981278,0.92830905,114050.0,114040.0,0.8775199]
[1757590982173,0.92830905,114050.0,114040.0,0.98785185]
[1757590984872,0.92830905,114050.0,114040.0,0.8775199]
[1757590985282,0.92830905,114050.0,114040.0,0.98792495]
[1757590987684,0.92830905,114050.0,114040.0,0.8775199]
[1757590988183,0.92830905,114050.0,114040.0,0.3175199]
[1757590990980,0.92830905,114050.0,114040.0,0.42799447]
[1757590993782,0.92830905,114050.0,114040.0,0.3175199]
[1757590994383,0.92830905,114050.0,114040.0,0.58574565]
[1757590995188,0.92830905,114050.0,114040.0,0.42800638]
[1757590995891,0.92830905,114050.0,114040.0,0.3175199]
[1757590996385,0.92830905,114050.0,114040.0,0.42800638]
[1757590996790,0.92830905,114050.0,114040.0,0.3175199]
[1757590999193,0.92830905,114050.0,114040.0,0.47525917]
[1757590999890,0.92830905,114050.0,114040.0,0.58575779]
[1757591000087,0.92830905,114050.0,114040.0,0.42801852]
[1757591000585,1.078789,114050.0,114040.0,0.15397862]
[1757591000787,1.328789,114050.0,114040.0,0.11925862]
[1757591000980,1.328789,114050.0,114040.0,0.25627857]
[1757591001186,1.328789,114050.0,114040.0,0.14577995]
[1757591001487,1.328789,114050.0,114040.0,0.25627857]
[1757591002093,1.328789,114050.0,114040.0,0.11925862]
[1757591002396,1.328789,114050.0,114040.0,0.14577995]
[1757591002893,1.328789,114050.0,114040.0,0.25627857]
[1757591003693,1.328789,114050.0,114040.0,0.11925862]
[1757591003894,1.328789,114050.0,114040.0,0.25627857]
[1757591004990,1.19176905,114050.0,114040.0,0.19812479]
[1757591005292,1.19176905,114050.0,114040.0,0.08762617]
[1757591005293,1.328789,114050.0,114040.0,0.08762617]
[1757591006087,1.328789,114050.0,114040.0,0.22464612]
[1757591006898,1.328789,114050.0,114040.0,0.14577995]
[1757591007697,1.328789,114050.0,114040.0,0.22462177]
[1757591009897,1.327829,114050.0,114040.0,0.22462177]
[1757591010296,1.327829,114050.0,114040.0,0.14577995]
[1757591010794,1.19080905,114050.0,114040.0,0.14577995]
[1757591010996,1.327829,114050.0,114040.0,0.14577995]
[1757591012100,1.327829,114050.0,114040.0,0.22460288]
[1757591012295,1.327829,114050.0,114040.0,0.08758293]
[1757591012500,1.327829,114050.0,114040.0,0.22460288]
[1757591014504,1.327829,114050.0,114040.0,0.14577995]
[1757591014705,1.327829,114050.0,114040.0,0.25627857]
[1757591014901,1.327829,114050.0,114040.0,0.3350947]
[1757591015102,1.327829,114050.0,114040.0,0.22459608]
[1757591015405,1.327829,114050.0,114040.0,0.14577995]
[1757591016305,1.327829,114050.0,114040.0,0.22459464]
[1757591017299,1.327709,114050.0,114040.0,0.22459464]
[1757591017507,1.327669,114050.0,114040.0,0.22459464]
[1757591018405,1.3071932,114050.0,114040.0,0.22459464]
[1757591018705,1.3277222,114050.0,114040.0,0.22459464]
[1757591019105,0.5238422,114050.0,114040.0,0.22459464]
[1757591019406,1.0777622,114050.0,114040.0,0.22459497]
[1757591019706,0.2738422,114050.0,114040.0,0.24619497]
[1757591020105,1.0776822,114050.0,114040.0,0.24619497]
[1757591020310,1.0776822,114050.0,114040.0,0.16737995]
[1757591020513,1.0776822,114050.0,114040.0,0.24619785]
[1757591020801,0.13682225,114050.0,114040.0,0.24619785]
[1757591021007,0.94066225,114050.0,114040.0,0.3832178]